bitfinex/quotes_SOLUSD_20240909
["timestamp","ask_amount","ask_price","bid_price","bid_amount"]
[1725872539225,45.0,130.29,130.24,4.94262141]
[1725872539516,45.0,130.29,130.25,4.94262141]
[1725872539694,45.0,130.29,130.21,12.71156164]
[1725872539695,45.0,130.29,130.26,4.94262141]
[1725872539902,45.0,130.29,130.23,12.71156164]
[1725872540102,45.0,130.29,130.24,4.94367901]
[1725872540289,45.0,130.29,130.25,4.94367901]
[1725872540608,45.0,130.29,130.26,4.94367901]
[1725872540814,45.0,130.29,130.23,12.71156164]
[1725872540998,45.0,130.29,130.24,4.94299236]
[1725872541199,45.0,130.29,130.25,4.94299236]
[1725872541511,45.0,130.29,130.26,4.94299236]
[1725872541702,45.0,130.29,130.23,12.71156164]
[1725872541912,45.0,130.29,130.24,4.94262748]
[1725872542090,45.0,130.29,130.25,4.94262748]
[1725872542287,45.0,130.29,130.26,4.94262748]
[1725872542491,23.4502501,130.3,130.17,30.9836]
[1725872542492,23.4502501,130.3,130.25,12.71156164]
[1725872542715,23.4502501,130.3,130.26,4.94233267]
[1725872543018,23.4502501,130.3,130.25,12.71156164]
[1725872543217,23.4502501,130.3,130.26,4.9420016]
[1725872543420,23.4502501,130.3,130.27,4.94150756]
[1725872543724,23.4502501,130.3,130.28,4.94026465]
[1725872543725,0.8391501,130.3,130.28,4.94026465]
[1725872543894,0.8391501,130.3,130.29,4.94026465]
[1725872544209,0.8391501,130.3,130.29,17.65182629]
[1725872545209,0.8391501,130.3,130.29,17.64888264]
[1725872547924,0.8391501,130.3,130.23,2.46192773]
[1725872548229,0.8391501,130.3,130.27,12.71156164]
[1725872548421,0.8391501,130.3,130.28,24.93910871]
[1725872548602,0.8391501,130.3,130.29,4.93910871]
[1725872549302,0.8391501,130.3,130.29,17.65067035]
[1725872551123,0.8391501,130.3,130.29,12.71156164]
[1725872551298,0.8391501,130.3,130.29,17.64910853]
[1725872555706,0.8391501,130.3,130.29,4.93754689]
[1725872559531,0.8391501,130.3,130.29,24.93754689]
[1725872560718,0.8391501,130.3,130.29,37.64910853]
[1725872561426,0.8391501,130.3,130.29,24.93754689]
[1725872561650,0.8391501,130.3,130.29,37.64910853]
[1725872564317,0.8391501,130.3,130.29,32.71156164]
[1725872564520,0.8391501,130.3,130.29,37.64929905]
[1725872564742,0.8391501,130.3,130.29,32.71156164]
[1725872565037,0.8391501,130.3,130.29,37.6489867]
[1725872567734,0.8391501,130.3,130.29,32.71156164]
[1725872567919,0.8391501,130.3,130.29,37.64895514]
[1725872570122,0.8391501,130.3,130.29,17.64895514]
[1725872570526,0.8391501,130.3,130.29,4.9373935]
[1725872574529,0.8391501,130.3,130.28,12.71156164]
[1725872574729,0.8391501,130.3,130.29,4.93664152]
[1725872575036,0.8391501,130.3,130.29,4.93664117]
[1725872578033,0.8391501,130.3,130.29,4.93653515]
[1725872579053,0.8391501,130.3,130.29,6.47128309]
[1725872579349,0.8391501,130.3,130.29,4.93653515]
[1725872579757,0.8391501,130.3,130.29,24.93653515]
[1725872583931,0.8391501,130.3,130.29,24.9368462]
[1725872584377,0.8391501,130.3,130.29,24.93859008]
[1725872588460,0.8391501,130.3,130.29,26.47317429]
[1725872589159,0.8391501,130.3,130.29,24.93859008]
[1725872589841,0.8391501,130.3,130.29,17.65015172]
[1725872590041,0.8391501,130.3,130.29,37.65015172]
[1725872590456,0.8391501,130.3,130.29,37.65173985]
[1725872594272,0.8391501,130.3,130.29,37.65046952]
[1725872595866,0.8391501,130.3,130.29,32.71156164]
[1725872596058,0.8391501,130.3,130.29,37.65149269]
[1725872597252,0.8391501,130.3,130.29,37.64982671]
[1725872609567,0.8391501,130.3,130.29,24.93826507]
[1725872609760,0.8391501,130.3,130.29,4.93826507]
[1725872609978,0.8391501,130.3,130.29,24.93826507]
[1725872613358,0.8391501,130.3,130.29,20.0]
[1725872613559,0.8391501,130.3,130.29,24.93961103]
[1725872615378,0.8391501,130.3,130.29,27.40126748]
[1725872616077,0.8391501,130.3,130.29,7.40126748]
[1725872616454,0.8391501,130.3,130.29,4.93961103]
[1725872616656,8.5137501,130.3,130.29,4.94580395]
[1725872616961,53.5137501,130.3,130.24,2.46256096]
[1725872617177,21.9515,130.28,130.25,4.94946147]
[1725872617474,21.9515,130.28,130.22,2.46256096]
[1725872617475,45.0,130.27,130.22,2.46256096]
[1725872617679,45.0,130.27,130.23,4.95140481]
[1725872617989,45.0,130.27,130.24,4.95140481]
[1725872618154,45.0,130.27,130.21,12.71156164]
[1725872618360,45.0,130.27,130.22,4.95098987]
[1725872618561,45.0,130.27,130.23,4.95098987]
[1725872618866,45.0,130.27,130.24,4.95098987]
[1725872619069,21.9515,130.28,130.25,4.94980346]
[1725872619324,21.9515,130.28,130.23,12.71156164]
[1725872619571,21.9515,130.28,130.24,4.94892604]
[1725872619784,21.9515,130.28,130.25,4.94892604]
[1725872619963,21.9515,130.28,130.26,4.94806789]
[1725872620157,21.9515,130.28,130.23,12.71156164]
[1725872620363,21.9515,130.28,130.24,4.94961502]
[1725872620669,21.9515,130.28,130.25,4.94961502]
[1725872620984,21.9515,130.28,130.23,12.71156164]
[1725872621274,6.53,130.28,130.25,12.71156164]
[1725872621489,6.53,130.28,130.26,4.94871409]
[1725872621682,6.53,130.28,130.25,12.71156164]
[1725872621861,6.53,130.28,130.26,4.9478612]
[1725872622059,6.53,130.28,130.25,12.71156164]
[1725872622258,6.53,130.28,130.26,4.94786034]
[1725872622479,6.53,130.28,130.25,12.71156164]
[1725872622660,0.8391501,130.3,130.27,12.71156164]
[1725872623988,0.8391501,130.3,130.28,4.94534163]
[1725872624162,0.8391501,130.3,130.27,12.71156164]
[1725872624364,0.8391501,130.3,130.28,4.94507992]
[1725872624562,0.8391501,130.3,130.27,12.71156164]
[1725872624875,0.8391501,130.3,130.28,4.94512372]
[1725872625078,0.8391501,130.3,130.27,12.71156164]
[1725872625265,0.8391501,130.3,130.28,4.94545775]
[1725872625454,0.8391501,130.3,130.27,12.71156164]
[1725872625655,0.8391501,130.3,130.28,4.9451712]
[1725872625874,0.8391501,130.3,130.27,12.71156164]
[1725872626185,0.8391501,130.3,130.28,4.94517206]
[1725872626483,0.8391501,130.3,130.27,12.71156164]
[1725872626665,0.8391501,130.3,130.28,4.94516967]
[1725872626866,0.8391501,130.3,130.27,12.71156164]
[1725872627066,0.8391501,130.3,130.28,4.9451712]
[1725872627284,0.8391501,130.3,130.27,12.71156164]
[1725872627487,0.8391501,130.3,130.28,4.94460854]
[1725872627688,0.8391501,130.3,130.27,12.71156164]
[1725872628001,0.8391501,130.3,130.28,4.94471133]
[1725872628283,0.8391501,130.3,130.27,12.71156164]
[1725872628478,0.8391501,130.3,130.28,4.94376092]
[1725872628657,0.8391501,130.3,130.29,4.94376092]
[1725872631086,0.8391501,130.3,130.29,4.94878277]
[1725872632361,0.8391501,130.3,130.29,17.66034441]
[1725872632580,0.8391501,130.3,130.29,37.66034441]
[1725872633358,0.8391501,130.3,130.29,37.65525657]
[1725872639892,0.8391501,130.3,130.29,37.65448295]
[1725872640093,0.8391501,130.3,130.29,37.65452314]
[1725872641203,0.8391501,130.3,130.29,24.9429615]
[1725872642183,0.8391501,130.3,130.29,24.94320153]
[1725872642714,0.8391501,130.3,130.29,20.0]
[1725872642875,0.8391501,130.3,130.29,24.94510702]
[1725872643580,0.8391501,130.3,130.29,24.94600483]
[1725872643788,0.8391501,130.3,130.29,17.65756647]
[1725872643978,0.8391501,130.3,130.29,37.65756647]
[1725872645802,0.8391501,130.3,130.29,37.65889202]
[1725872647498,0.8391501,130.3,130.29,24.94733038]
[1725872647697,0.8391501,130.3,130.29,37.65889202]
[1725872648688,0.8391501,130.3,130.29,24.94733038]
[1725872648893,0.8391501,130.3,130.29,4.94733038]
[1725872649103,0.8391501,130.3,130.29,24.94887704]
[1725872651183,0.8391501,130.3,130.29,4.94887704]
[1725872651716,0.8391501,130.3,130.29,24.94887704]
[1725872652209,0.8391501,130.3,130.29,20.0]
[1725872652413,0.8391501,130.3,130.29,24.94744065]
[1725872652818,0.8391501,130.3,130.29,20.0]
[1725872652986,0.8391501,130.3,130.29,24.94916471]
[1725872653616,0.8391501,130.3,130.28,12.71156164]
[1725872653815,0.8391501,130.3,130.29,4.95000768]
[1725872655613,0.8391501,130.3,130.29,4.94796499]
[1725872655912,0.8391501,130.3,130.28,20.0]
[1725872656215,0.8391501,130.3,130.29,4.94795963]
[1725872657125,0.8391501,130.3,130.27,12.71156164]
[1725872657323,0.8391501,130.3,130.28,4.94834121]
[1725872657487,0.8391501,130.3,130.29,4.94834121]
[1725872658291,0.8391501,130.3,130.29,17.65990285]
[1725872658490,0.8391501,130.3,130.29,24.94834121]
[1725872658691,0.8391501,130.3,130.29,37.65990285]
[1725872658892,0.8391501,130.3,130.29,37.65666702]
[1725872660916,6.631,130.36,130.29,24.94510538]
[1725872661101,6.631,130.36,130.31,12.71156164]
[1725872661308,6.631,130.36,130.32,24.94510538]
[1725872661613,6.631,130.36,130.3,12.71156164]
[1725872661834,6.631,130.36,130.31,24.94356262]
[1725872661996,6.631,130.36,130.31,24.94423489]
[1725872662202,6.631,130.36,130.32,4.94423489]
[1725872662402,45.0,130.35,130.3,12.71156164]
[1725872662927,45.0,130.35,130.31,4.94449439]
[1725872663220,45.0,130.35,130.29,20.0]
[1725872663418,45.0,130.35,130.3,4.94632254]
[1725872663599,45.0,130.35,130.31,4.94632254]
[1725872663798,45.0,130.35,130.29,20.0]
[1725872663996,45.0,130.35,130.3,17.65640944]
[1725872664308,45.0,130.35,130.31,4.9448478]
[1725872664512,45.0,130.35,130.32,4.9448478]
[1725872664704,45.0,130.35,130.3,12.71156164]
[1725872664904,45.0,130.35,130.31,4.94366693]
[1725872665217,45.0,130.35,130.3,12.71156164]
[1725872665415,45.0,130.35,130.32,4.94356188]
[1725872665625,45.0,130.35,130.3,12.71156164]
[1725872665813,45.0,130.35,130.31,4.94379542]
[1725872666118,45.0,130.35,130.32,4.94379542]
[1725872666309,45.0,130.35,130.3,12.71156164]
[1725872666519,45.0,130.35,130.31,4.94367415]
[1725872666824,45.0,130.35,130.32,4.94367415]
[1725872667046,45.0,130.35,130.3,12.71156164]
[1725872667321,45.0,130.35,130.31,4.94362354]
[1725872667539,45.0,130.35,130.32,4.94362354]
[1725872667712,45.0,130.35,130.29,20.0]
[1725872667906,60.7782,130.35,130.3,4.94462837]
[1725872668227,60.7782,130.35,130.31,4.94462837]
[1725872668429,60.7782,130.35,130.27,12.71156164]
[1725872668430,60.7782,130.35,130.28,20.0]
[1725872668726,60.7782,130.35,130.29,4.94553372]
[1725872668912,60.7782,130.35,130.3,4.94553372]
[1725872669108,60.7782,130.35,130.28,20.0]
[1725872669109,60.7782,130.35,130.31,4.94553372]
[1725872669302,60.7782,130.35,130.32,4.94553372]
[1725872669501,60.7782,130.35,130.33,4.94553372]
[1725872669698,60.7782,130.35,130.34,4.94553372]
[1725872669916,60.7782,130.35,130.31,12.71156164]
[1725872670115,60.7782,130.35,130.32,4.942915]
[1725872670317,60.7782,130.35,130.33,4.942915]
[1725872670516,60.7782,130.35,130.34,4.942915]
[1725872671912,60.7782,130.35,130.34,4.94568025]
[1725872672114,60.7782,130.35,130.31,12.71156164]
[1725872672320,60.7782,130.35,130.28,20.0]
[1725872672321,60.7782,130.35,130.34,4.94599572]
[1725872672605,60.7782,130.35,130.29,12.71156164]
[1725872672813,60.7782,130.35,130.3,4.94796764]
[1725872673130,68.4498,130.35,130.31,4.94796764]
[1725872673312,68.4498,130.35,130.32,4.94796764]
[1725872673508,68.4498,130.35,130.27,12.71156164]
[1725872673708,20.0,130.34,130.28,4.95012622]
[1725872673910,45.0,130.33,130.27,12.71156164]
[1725872675021,45.0,130.34,130.27,12.71156164]
[1725872676915,45.0,130.34,130.24,25.66522697]
[1725872676916,45.0,130.34,130.31,12.71156164]
[1725872678715,45.0,130.34,130.29,12.71156164]
[1725872686233,45.0,130.34,130.31,12.71156164]
[1725872686544,15.7782,130.35,130.31,12.71156164]
[1725872687648,45.0,130.34,130.31,12.71156164]
[1725872688259,45.0,130.34,130.29,12.71156164]
[1725872690359,45.0,130.34,130.29,15.17328775]
[1725872690551,45.0,130.34,130.29,12.71156164]
[1725872691337,45.0,130.34,130.29,15.17328775]
[1725872691538,45.0,130.34,130.29,12.71156164]
[1725872692357,45.0,130.34,130.29,15.17328775]
[1725872692658,45.0,130.34,130.29,12.71156164]
[1725872693368,45.0,130.34,130.29,15.17328775]
[1725872693549,45.0,130.34,130.29,12.71156164]
[1725872694163,45.0,130.34,130.29,15.17328775]
[1725872694390,45.0,130.34,130.29,12.71156164]
[1725872694961,45.0,130.34,130.29,15.17328775]
[1725872695160,45.0,130.34,130.29,12.71156164]
[1725872697252,15.7782,130.35,130.31,12.71156164]
[1725872698339,6.631,130.36,130.31,12.71156164]
[1725872701373,6.631,130.36,130.33,12.71156164]
[1725872701886,56.44796856,130.38,130.33,12.71156164]
[1725872702066,45.0,130.37,130.33,12.71156164]
[1725872702375,56.44796856,130.38,130.33,12.71156164]
[1725872702580,40.11176856,130.38,130.33,12.71156164]
[1725872702784,40.11176856,130.38,130.35,12.71156164]
[1725872703073,40.11176856,130.38,130.37,12.71156164]
[1725872703369,40.11176856,130.38,130.34,16.2074]
[1725872703666,40.11176856,130.38,130.35,20.0]
[1725872704966,40.11176856,130.38,130.34,20.0]
[1725872712957,40.11176856,130.38,130.36,12.71156164]
[1725872713166,2.97636363,130.42,130.37,20.0]
[1725872713361,6.8770501,130.43,130.37,20.0]
[1725872713562,6.8770501,130.43,130.37,32.71156164]
[1725872713782,6.8770501,130.43,130.37,12.71156164]
[1725872713977,6.8770501,130.43,130.36,20.0]
[1725872714372,45.0,130.42,130.35,28.55866164]
[1725872717891,45.0,130.42,130.37,12.71156164]
[1725872720092,6.8770501,130.43,130.39,12.71156164]
[1725872722276,0.8391501,130.43,130.41,12.71156164]
[1725872724272,0.8391501,130.43,130.42,1.53340156]
[1725872724785,0.8391501,130.43,130.41,12.71156164]
[1725872725185,0.8391501,130.43,130.42,20.0]
[1725872725894,6.0064,130.5,130.42,20.0]
[1725872726095,6.3129,130.54,130.46,12.71156164]
[1725872726292,6.3129,130.54,130.48,12.71156164]
[1725872727367,0.1,130.55,130.45,15.0487]
[1725872727572,0.1,130.55,130.46,20.0]
[1725872727789,0.1,130.55,130.53,12.71156164]
[1725872728173,0.1,130.55,130.51,15.5787]
[1725872728386,0.1,130.55,130.54,12.71156164]
[1725872728972,38.81052837,130.65,130.55,15.5787]
[1725872729177,38.81052837,130.65,130.56,12.71156164]
[1725872729374,38.81052837,130.65,130.55,15.5787]
[1725872729585,10.0,130.67,130.57,12.71156164]
[1725872729869,6.3868,130.68,130.57,12.71156164]
[1725872730301,20.0,130.67,130.55,15.5787]
[1725872730499,6.3868,130.68,130.59,12.71156164]
[1725872730792,6.3868,130.68,130.55,15.5787]
[1725872730993,6.3868,130.68,130.6,12.71156164]
[1725872731692,6.3868,130.68,130.64,12.71156164]
[1725872731921,0.8391501,130.69,130.66,12.71156164]
[1725872732198,0.8391501,130.69,130.66,31.56608123]
[1725872732510,0.8391501,130.69,130.64,10.50716618]
[1725872732677,0.8391501,130.69,130.63,15.87]
[1725872733001,0.8391501,130.69,130.65,31.56608123]
[1725872733576,0.8391501,130.69,130.63,47.43608123]
[1725872733791,0.8391501,130.69,130.67,31.56608123]
[1725872734683,0.8391501,130.69,130.65,31.56608123]
[1725872734889,0.8391501,130.69,130.63,47.43608123]
[1725872735095,0.8391501,130.69,130.63,31.56608123]
[1725872735281,0.8391501,130.69,130.6,6.1922]
[1725872735594,0.8391501,130.69,130.61,31.56608123]
[1725872735797,0.8391501,130.69,130.63,31.56608123]
[1725872736709,6.1703,130.68,130.59,16.5544]
[1725872737000,65.0,130.67,130.57,31.56608123]
[1725872737383,65.0,130.67,130.59,31.56608123]
[1725872737578,45.0,130.67,130.61,31.56608123]
[1725872737797,6.1703,130.68,130.55,47.25428123]
[1725872737798,6.1703,130.68,130.63,31.56608123]
[1725872737986,0.8391501,130.69,130.64,1.53075285]
[1725872738200,0.8391501,130.69,130.63,31.56608123]
[1725872738509,0.8391501,130.69,130.61,31.56608123]
[1725872738679,0.8391501,130.69,130.62,20.0]
[1725872739683,45.8391501,130.69,130.59,31.56608123]
[1725872739903,20.0,130.68,130.6,20.0]
[1725872740109,20.0,130.68,130.59,31.56608123]
[1725872740110,45.0,130.67,130.59,31.56608123]
[1725872740406,45.0,130.67,130.55,67.25428123]
[1725872740407,45.0,130.67,130.57,31.56608123]
[1725872740605,45.0,130.67,130.55,15.6882]
[1725872740606,33.8263,130.66,130.55,47.25428123]
[1725872740818,45.0,130.65,130.55,47.25428123]
[1725872741107,45.0,130.65,130.55,31.56608123]
[1725872741108,20.0,130.64,130.55,31.56608123]
[1725872741282,45.0,130.63,130.55,31.56608123]
[1725872741484,45.0,130.63,130.5,15.5475]
[1725872741485,45.0,130.63,130.53,31.56608123]
[1725872741802,45.0,130.63,130.5,15.5475]
[1725872741803,45.0,130.63,130.55,31.56608123]
[1725872741983,20.0,130.62,130.53,31.56608123]
[1725872742397,45.0,130.61,130.53,31.56608123]
[1725872742586,45.0,130.61,130.51,31.56608123]
[1725872742908,28.64676798,130.66,130.5,15.5475]
[1725872742909,6.1728,130.66,130.57,31.56608123]
[1725872743118,20.0,130.65,130.57,31.56608123]
[1725872743794,6.1728,130.66,130.57,31.56608123]
[1725872744101,0.8391501,130.69,130.61,31.56608123]
[1725872745092,0.8391501,130.69,130.59,31.56608123]
[1725872745299,0.8391501,130.69,130.6,20.0]
[1725872745508,20.8391501,130.69,130.6,20.0]
[1725872745817,0.8391501,130.69,130.6,20.0]
[1725872745993,20.8391501,130.69,130.6,20.0]
[1725872746311,20.8391501,130.69,130.61,39.46421288]
[1725872749308,20.8391501,130.69,130.57,39.46421288]
[1725872749513,20.8391501,130.69,130.58,20.0]
[1725872749713,7.6534,130.66,130.57,39.46421288]
[1725872749893,65.0,130.65,130.57,39.46421288]
[1725872751899,6.2896,130.64,130.55,39.46421288]
[1725872752110,6.2896,130.64,130.57,39.46421288]
[1725872752111,45.0,130.63,130.57,39.46421288]
[1725872752314,6.2896,130.64,130.57,39.46421288]
[1725872752809,45.0,130.63,130.57,39.46421288]
[1725872753194,45.0,130.63,130.55,39.46421288]
[1725872753392,6.2896,130.64,130.59,39.46421288]
[1725872754289,6.3554,130.68,130.61,39.46421288]
[1725872754485,20.0,130.67,130.61,39.46421288]
[1725872754909,6.3554,130.68,130.61,39.46421288]
[1725872755105,6.3554,130.68,130.62,1.53096359]
[1725872755306,6.3554,130.68,130.63,39.46421288]
[1725872755787,0.8391501,130.69,130.65,39.46421288]
[1725872756599,0.8391501,130.69,130.66,1.53049253]
[1725872756802,0.8391501,130.69,130.67,39.46421288]
[1725872757095,0.8391501,130.69,130.67,40.9943813]
[1725872757299,0.8391501,130.69,130.67,39.46421288]
[1725872758304,0.8391501,130.69,130.65,57.07127418]
[1725872758526,0.8391501,130.69,130.66,20.0]
[1725872759314,0.8391501,130.69,130.67,1.53037705]
[1725872759496,0.8391501,130.69,130.66,21.53037557]
[1725872760421,0.8391501,130.69,130.65,39.46421288]
[1725872762528,0.8391501,130.69,130.67,39.46421288]
[1725872762730,0.8391501,130.69,130.65,39.46421288]
[1725872763742,0.8391501,130.69,130.63,39.46421288]
[1725872764725,0.8391501,130.69,130.64,20.0]
[1725872766906,6.8975501,130.69,130.64,20.0]
[1725872767122,6.8975501,130.69,130.63,39.46421288]
[1725872767805,6.8975501,130.69,130.61,15.7045]
[1725872767806,6.8975501,130.69,130.61,39.46421288]
[1725872768007,45.0,130.68,130.61,39.46421288]
[1725872769610,61.2562,130.68,130.61,39.46421288]
[1725872769809,61.2562,130.68,130.59,39.46421288]
[1725872770026,61.2562,130.68,130.6,20.0]
[1725872770198,61.2562,130.68,130.59,1.53105138]
[1725872770522,20.0,130.67,130.57,56.04881288]
[1725872770702,45.0,130.66,130.57,56.04881288]
[1725872771522,45.0,130.66,130.58,20.0]
[1725872772624,45.0,130.66,130.53,55.30021288]
[1725872772625,7.6553,130.63,130.53,55.30021288]
[1725872772810,15.1836,130.61,130.53,39.46421288]
[1725872773127,15.1836,130.61,130.49,31.30473809]
[1725872773128,15.1836,130.61,130.52,39.46421288]
[1725872773636,15.1836,130.61,130.54,39.46421288]
[1725872774126,15.1836,130.61,130.55,1.53149946]
[1725872774624,15.1836,130.61,130.54,39.46421288]
[1725872775521,22.84,130.61,130.52,39.46421288]
[1725872775718,22.84,130.61,130.53,20.0]
[1725872775719,6.1334,130.59,130.53,20.0]
[1725872775919,45.0,130.58,130.53,20.0]
[1725872776327,45.0,130.58,130.5,39.46421288]
[1725872778725,52.6582,130.58,130.5,39.46421288]
[1725872779026,45.0,130.58,130.5,39.46421288]
[1725872780835,13.7915,130.59,130.48,39.46421288]
[1725872781134,20.0,130.58,130.49,20.0]
[1725872781424,7.6588,130.57,130.49,20.0]
[1725872781637,20.0,130.56,130.48,39.46421288]
[1725872781807,20.0,130.56,130.46,39.46421288]
[1725872781808,27.6594,130.56,130.46,39.46421288]
[1725872782001,6.4257,130.54,130.46,39.46421288]
[1725872782204,21.8014,130.54,130.46,39.46421288]
[1725872782814,45.0,130.53,130.46,39.46421288]
[1725872783211,45.0,130.53,130.41,31.68713809]
[1725872783412,45.0,130.53,130.38,15.0976]
[1725872783413,6.0718,130.51,130.38,15.0976]
[1725872783618,6.0718,130.51,130.41,39.46421288]
[1725872783814,65.0,130.5,130.41,39.46421288]
[1725872784034,65.0,130.5,130.39,39.46421288]
[1725872785211,72.6628,130.5,130.39,39.46421288]
[1725872785404,65.0,130.5,130.41,39.46421288]
[1725872788017,72.663,130.5,130.41,39.46421288]
[1725872788228,65.0,130.5,130.41,39.46421288]
[1725872788629,72.6628,130.5,130.41,39.46421288]
[1725872789026,65.0,130.5,130.41,39.46421288]
[1725872790427,65.0,130.5,130.43,39.46421288]
[1725872791036,65.0,130.5,130.44,1.53291263]
[1725872791037,45.0,130.5,130.44,1.53291263]
[1725872791234,45.0,130.5,130.43,39.46421288]
[1725872792337,45.0,130.5,130.41,39.46421288]
[1725872792641,45.0,130.5,130.42,20.0]
[1725872793436,45.0,130.5,130.43,40.99732256]
[1725872793622,45.0,130.5,130.43,39.46421288]
[1725872794522,6.0718,130.51,130.47,39.46421288]
[1725872794827,21.9228,130.54,130.49,39.46421288]
[1725872795024,6.5471,130.54,130.47,39.46421288]
[1725872795228,6.5471,130.54,130.49,39.46421288]
[1725872795926,6.5471,130.59,130.51,39.46421288]
[1725872796742,6.5471,130.59,130.53,39.46421288]
[1725872800042,6.5471,130.59,130.55,39.46421288]
[1725872801242,6.2865,130.63,130.56,1.53169494]
[1725872801544,6.2865,130.63,130.55,39.46421288]
[1725872802267,6.2865,130.63,130.57,39.46421288]
[1725872802624,2.23495698,130.63,130.57,39.46421288]
[1725872802827,2.23495698,130.63,130.59,39.46421288]
[1725872803723,16.0761,130.68,130.61,39.46421288]
[1725872803945,0.8391501,130.69,130.63,39.46421288]
[1725872804326,0.8391501,130.69,130.65,39.46421288]
[1725872805231,0.8391501,130.69,130.66,1.53053934]
[1725872805751,0.8391501,130.69,130.65,39.46421288]
[1725872807453,0.8391501,130.69,130.65,39.43410288]
[1725872811830,0.8391501,130.69,130.67,39.46421288]
[1725872812030,0.8391501,130.69,130.68,21.5299446]
[1725872812235,6.3627,130.75,130.68,65.0]
[1725872812451,6.3627,130.75,130.72,39.46421288]
[1725872813654,0.8391501,130.82,130.72,39.46421288]
[1725872813832,0.8391501,130.82,130.74,39.46421288]
[1725872814950,8.4833501,130.82,130.72,39.46421288]
[1725872815156,8.4833501,130.82,130.73,20.0]
[1725872815361,7.6448,130.81,130.72,39.46421288]
[1725872815728,52.6454,130.8,130.72,39.46421288]
[1725872816752,45.0,130.8,130.72,39.46421288]
[1725872816951,0.8391501,130.82,130.74,39.46421288]
[1725872817954,8.4835501,130.82,130.74,39.46421288]
[1725872818746,45.0,130.81,130.74,39.46421288]
[1725872818949,45.0,130.81,130.75,1.52942558]
[1725872819140,45.0,130.81,130.74,39.46421288]
[1725872819361,8.4835501,130.82,130.74,39.46421288]
[1725872820141,0.8391501,130.82,130.74,39.46421288]
[1725872822161,8.4832501,130.82,130.74,39.46421288]
[1725872822861,8.4832501,130.82,130.75,1.52935107]
[1725872823167,8.4832501,130.82,130.74,39.46421288]
[1725872823964,7.6447,130.81,130.74,39.46421288]
[1725872824144,8.4835501,130.82,130.74,39.46421288]
[1725872824344,52.6447,130.81,130.74,39.46421288]
[1725872824964,8.4832501,130.82,130.74,39.46421288]
[1725872825641,8.4832501,130.82,130.75,1.52934872]
[1725872825846,0.8391501,130.82,130.75,1.52934872]
[1725872826351,0.8391501,130.82,130.76,39.46421288]
[1725872827848,0.8391501,130.82,130.74,39.46421288]
[1725872828542,7.6447,130.81,130.73,15.5763]
[1725872829865,7.6447,130.81,130.74,1.52949042]
[1725872830066,7.6447,130.81,130.73,15.5763]
[1725872830862,7.6462,130.79,130.72,39.46421288]
[1725872831044,45.0,130.8,130.72,39.46421288]
[1725872831240,52.6457,130.8,130.72,39.46421288]
[1725872831657,0.8391501,130.82,130.74,39.46421288]
[1725872832059,0.8391501,130.82,130.76,39.46421288]
[1725872832876,0.8391501,130.82,130.78,39.46421288]
[1725872839253,0.8391501,130.82,130.76,39.46421288]
[1725872839456,6.3102,130.81,130.74,55.38251288]
[1725872839751,13.9549,130.81,130.74,55.38251288]
[1725872839956,13.9549,130.81,130.75,1.52933071]
[1725872840275,13.9549,130.81,130.74,55.38251288]
[1725872840276,6.3102,130.81,130.74,55.38251288]
[1725872840452,6.3102,130.81,130.75,1.5292262]
[1725872840652,6.3102,130.81,130.74,55.38251288]
[1725872840876,0.8391501,130.82,130.76,39.46421288]
[1725872841862,0.8391501,130.82,130.76,44.34714065]
[1725872842171,0.8391501,130.82,130.76,39.46421288]
[1725872842570,0.8391501,130.82,130.77,4.87931579]
[1725872842763,0.8391501,130.82,130.78,4.87931579]
[1725872842960,0.8391501,130.82,130.79,4.87931579]
[1725872843161,0.8391501,130.82,130.76,39.46421288]
[1725872843577,0.8391501,130.82,130.78,39.46421288]
[1725872843876,0.8391501,130.82,130.79,4.87977412]
[1725872844179,0.8391501,130.82,130.8,4.87977412]
[1725872844380,0.8391501,130.82,130.78,39.46421288]
[1725872845186,0.8391501,130.82,130.8,39.46421288]
[1725872846562,0.8391501,130.82,130.78,39.46421288]
[1725872846882,0.8391501,130.82,130.79,4.88593038]
[1725872847075,0.8391501,130.82,130.78,39.46421288]
[1725872847282,0.8391501,130.82,130.79,4.88609334]
[1725872847458,0.8391501,130.82,130.78,39.46421288]
[1725872847786,0.8391501,130.82,130.79,4.88654602]